bitfinex-derivatives/quotes_BTCF0:USTF0_20251011
["timestamp","ask_amount","ask_price","bid_price","bid_amount"]
[1760217125441,0.01994,109880.0,109870.0,0.3608]
[1760217125635,0.1108481,109880.0,109870.0,0.3608]
[1760217125830,0.1108563,109870.0,109850.0,0.52583063]
[1760217126133,0.01994,109870.0,109860.0,0.61675523]
[1760217126339,0.01994,109870.0,109860.0,0.97755523]
[1760217126547,0.01994,109880.0,109870.0,0.0909163]
[1760217126742,0.02094,109890.0,109880.0,0.0909081]
[1760217127040,0.02094,109890.0,109880.0,1.37753873]
[1760217127041,0.001,109890.0,109880.0,1.37753873]
[1760217127439,0.001,109890.0,109880.0,0.97753873]
[1760217127440,0.02094,109890.0,109880.0,0.97753873]
[1760217127639,0.01994,109890.0,109880.0,0.97753873]
[1760217128035,0.01994,109900.0,109890.0,0.0908998]
[1760217128437,0.01994,109900.0,109890.0,0.61673043]
[1760217128640,0.01994,109900.0,109890.0,0.97753043]
[1760217128845,0.01994,109900.0,109890.0,0.61673043]
[1760217129046,0.01994,109910.0,109890.0,0.97753043]
[1760217129243,0.01994,109900.0,109890.0,0.3608]
[1760217129440,0.01994,109900.0,109890.0,0.97753043]
[1760217129841,0.01994,109920.0,109910.0,0.0908832]
[1760217130042,0.01994,109920.0,109910.0,0.97751383]
[1760217131345,0.01994,109930.0,109920.0,0.090875]
[1760217131540,0.01994,109930.0,109920.0,0.61670563]
[1760217131746,0.01994,109930.0,109920.0,0.97750563]
[1760217132548,0.02094,109930.0,109920.0,0.97750563]
[1760217135849,0.02094,109930.0,109920.0,0.88663063]
[1760217136048,0.42094,109930.0,109910.0,0.97750923]
[1760217136252,0.01994,109920.0,109910.0,0.97750923]
[1760217136647,0.41994,109920.0,109910.0,0.4516832]
[1760217137248,0.01994,109920.0,109910.0,0.97751383]
[1760217137847,0.02094,109930.0,109920.0,0.090875]
[1760217138048,0.01994,109930.0,109920.0,0.97750563]
[1760217138452,0.01994,109940.0,109920.0,1.37750033]
[1760217138650,0.01994,109940.0,109930.0,0.52583063]
[1760217138951,0.38074,109940.0,109930.0,0.52583063]
[1760217139548,0.01994,109940.0,109930.0,0.61669733]
[1760217139948,0.01994,109940.0,109930.0,0.97749733]
[1760217140856,0.02094,109940.0,109930.0,0.97749733]
[1760217141652,0.001,109940.0,109930.0,1.37749733]
[1760217144450,0.02094,109940.0,109930.0,0.97749733]
[1760217144855,0.001,109940.0,109930.0,1.37749733]
[1760217146058,0.02094,109940.0,109930.0,0.97749733]
[1760217146554,0.001,109940.0,109930.0,0.97749733]
[1760217146959,0.001,109940.0,109930.0,1.37749733]
[1760217147455,0.02094,109940.0,109930.0,1.37749733]
[1760217149558,0.02094,109940.0,109930.0,1.43731079]
[1760217150352,0.02094,109940.0,109930.0,1.43733887]
[1760217151559,0.001,109940.0,109930.0,0.8516667]
[1760217151753,0.02009,109940.0,109930.0,1.43733887]
[1760217152160,0.001,109940.0,109930.0,1.43733887]
[1760217152359,0.001,109940.0,109930.0,0.8516667]
[1760217152558,0.001,109940.0,109930.0,1.43733887]
[1760217152960,0.02009,109940.0,109930.0,0.8516667]
[1760217153157,0.02009,109940.0,109930.0,1.43733887]
[1760217154063,0.001,109940.0,109930.0,1.43733887]
[1760217154861,0.02009,109940.0,109930.0,1.43733887]
[1760217155661,0.001,109940.0,109930.0,1.43733887]
[1760217155959,0.01994,109950.0,109940.0,0.0908585]
[1760217156166,0.01994,109960.0,109950.0,0.0908502]
[1760217156364,0.01994,109960.0,109950.0,0.4516502]
[1760217156564,0.01994,109960.0,109950.0,1.03732237]
[1760217157160,0.45214,109960.0,109950.0,0.94647217]
[1760217157361,0.41994,109960.0,109950.0,1.03732237]
[1760217157659,0.01994,109960.0,109950.0,1.03732237]
[1760217158761,0.01994,109960.0,109950.0,1.62299454]
[1760217158957,0.02094,109960.0,109950.0,1.62299454]
[1760217159162,0.02094,109960.0,109950.0,1.03732237]
[1760217159765,0.02094,109960.0,109950.0,1.62299454]
[1760217160063,0.001,109960.0,109950.0,1.62299454]
[1760217160256,0.01994,109970.0,109960.0,0.0908419]
[1760217160464,0.01994,109970.0,109960.0,1.03731407]
[1760217160762,0.01909,109980.0,109970.0,0.0908337]
[1760217160963,0.01909,109980.0,109970.0,1.03730587]
[1760217161165,0.01909,109990.0,109980.0,0.0908254]
[1760217161364,0.01909,109990.0,109980.0,1.03729757]
[1760217161666,0.01909,109990.0,109980.0,0.4516254]
[1760217161967,0.01909,109990.0,109980.0,1.03729757]
[1760217162162,0.02022,110000.0,109990.0,0.0908172]
[1760217162368,0.02022,110000.0,109990.0,1.03728937]
[1760217163364,0.45308,110000.0,109990.0,0.94647217]
[1760217164269,0.81388,110000.0,109990.0,0.58567217]
[1760217164565,0.02022,109980.0,109970.0,0.3608]
[1760217164764,0.02022,109980.0,109970.0,0.94647217]
[1760217165070,0.02022,109980.0,109970.0,1.03730587]
[1760217165770,0.02122,109980.0,109970.0,1.03730587]
[1760217166363,0.05308,109980.0,109970.0,0.94647217]
[1760217166567,0.45308,109980.0,109970.0,0.94647217]
[1760217166773,0.02022,109960.0,109950.0,1.04401213]
[1760217167268,0.02022,109970.0,109960.0,0.0908419]
[1760217167474,0.02022,109970.0,109960.0,1.03731407]
[1760217168163,0.02122,109980.0,109970.0,0.0908337]
[1760217168365,0.02022,109980.0,109970.0,1.03730587]
[1760217168773,0.02022,109990.0,109980.0,0.0908254]
[1760217168973,0.02022,109990.0,109980.0,1.03729757]
[1760217169272,0.02022,109990.0,109980.0,0.58567217]
[1760217169468,0.45208,109990.0,109980.0,0.58567217]
[1760217169668,0.42022,109990.0,109980.0,0.58567217]
[1760217169863,0.42122,109990.0,109980.0,0.58567217]
[1760217170271,0.02022,109980.0,109970.0,0.58567217]
[1760217170467,0.02022,109960.0,109950.0,0.00668976]
[1760217170668,0.02022,109960.0,109950.0,0.58567217]
[1760217170877,0.02022,109950.0,109940.0,0.3608]
[1760217171077,0.02022,109950.0,109940.0,1.03733067]
[1760217171786,0.02022,109950.0,109940.0,1.04396369]
[1760217172885,0.02022,109970.0,109960.0,0.090842]
[1760217173082,0.02022,109970.0,109960.0,0.451642]
[1760217173286,0.02022,109970.0,109960.0,0.58567217]
[1760217173484,0.42022,109970.0,109960.0,0.58567217]
[1760217173981,0.78102,109970.0,109960.0,0.58567217]
[1760217174183,0.05208,109960.0,109950.0,0.58567217]
[1760217174483,0.02022,109950.0,109940.0,0.09748702]
[1760217174686,0.02022,109950.0,109940.0,0.68315919]
[1760217174878,0.02022,109950.0,109940.0,1.04395919]
[1760217177676,0.02022,109920.0,109910.0,0.53299195]
[1760217177885,0.02022,109920.0,109910.0,1.03735157]
[1760217178182,0.02022,109930.0,109910.0,1.44386757]
[1760217178376,0.02022,109930.0,109920.0,1.03734717]
[1760217179283,0.02022,109930.0,109920.0,0.67654717]
[1760217179585,0.02022,109930.0,109920.0,1.03734717]
[1760217180384,0.02022,109920.0,109910.0,0.4581912]
[1760217180692,0.38102,109930.0,109920.0,0.090875]
[1760217180887,0.38102,109930.0,109920.0,0.67654717]
[1760217181086,0.02022,109930.0,109920.0,1.03734717]
[1760217181288,0.38102,109950.0,109940.0,0.0908585]
[1760217181488,0.38102,109950.0,109940.0,0.67653067]
[1760217181786,0.38102,109960.0,109950.0,0.0908502]
[1760217181987,0.38102,109970.0,109960.0,0.0908419]
[1760217182186,0.38102,109980.0,109970.0,0.0908337]
[1760217182387,0.02022,109980.0,109970.0,0.67650587]
[1760217182891,0.02022,109980.0,109970.0,1.03730587]
[1760217183292,0.02022,109980.0,109970.0,0.67650587]
[1760217183483,0.02022,109980.0,109970.0,1.03730587]
[1760217184891,0.02022,109980.0,109970.0,1.04505664]
[1760217185588,0.01833,109990.0,109980.0,0.0908254]
[1760217185791,0.01833,109990.0,109980.0,1.03729757]
[1760217187095,0.01833,110000.0,109990.0,0.0908172]
[1760217187390,0.01833,110000.0,109990.0,1.03728937]
[1760217187894,0.01833,110010.0,110000.0,0.0908089]
[1760217188093,0.01833,110010.0,110000.0,1.03728107]
[1760217188789,0.01833,110020.0,110000.0,2.02295324]
[1760217188992,0.01833,110020.0,110010.0,1.03727287]
[1760217189693,0.01833,110020.0,110010.0,0.4516007]
[1760217189894,0.01833,110020.0,110010.0,1.03727287]
[1760217191999,0.01833,110030.0,110020.0,0.0907924]
[1760217192192,0.01833,110030.0,110020.0,1.03726457]
[1760217192391,0.01833,110030.0,110020.0,1.43726457]
[1760217192597,0.01833,110040.0,110030.0,0.0907842]
[1760217192894,0.01833,110040.0,110030.0,1.03725637]
[1760217193295,0.01833,110050.0,110040.0,0.0907759]
[1760217193496,0.01833,110050.0,110040.0,1.03724807]
[1760217193791,0.01833,110070.0,110060.0,0.0907594]
[1760217194087,0.01833,110070.0,110060.0,0.58567217]
[1760217194289,0.01833,110070.0,110060.0,0.94647217]
[1760217194496,0.01833,110070.0,110060.0,0.95299529]
[1760217194693,0.01833,110070.0,110060.0,0.59219529]
[1760217194895,0.5090812,110070.0,110060.0,0.59219529]
[1760217195094,0.9011412,110070.0,110060.0,0.59219529]
[1760217195295,0.9011412,110070.0,110060.0,0.00652312]
[1760217195490,0.37913,110070.0,110060.0,0.58567217]
[1760217195690,0.01833,110070.0,110060.0,0.58567217]
[1760217195899,0.01833,110070.0,110060.0,0.94647217]
[1760217196298,0.01933,110070.0,110060.0,0.94647217]
[1760217196702,0.01933,110070.0,110050.0,0.3608]
[1760217196703,0.01833,110060.0,110050.0,0.3608]
[1760217196998,0.01833,110060.0,110050.0,0.94647217]
[1760217197198,0.37913,110060.0,110050.0,0.58567217]
[1760217197392,0.37913,110060.0,110040.0,0.4515745]
[1760217197393,0.01833,110050.0,110040.0,0.3608]
[1760217197599,0.01833,110050.0,110040.0,0.95314639]
[1760217198495,0.5403577,110050.0,110040.0,0.59234639]
[1760217198696,0.44959,110050.0,110040.0,0.59234639]
[1760217198897,0.44959,110050.0,110040.0,0.00667422]
[1760217199092,0.44959,110050.0,110030.0,0.3608]
[1760217199291,0.01833,110040.0,110030.0,0.3608]
[1760217199495,0.01833,110040.0,110030.0,0.94647217]
[1760217199808,0.04959,110040.0,110030.0,0.58567217]
[1760217199991,0.01833,110040.0,110030.0,0.58567217]
[1760217200596,0.04959,110040.0,110030.0,0.58567217]
[1760217200798,0.44959,110040.0,110030.0,0.5924312]
[1760217201198,0.9011659,110040.0,110030.0,0.00675903]
[1760217201692,0.9011659,110040.0,110030.0,0.001]
[1760217201897,0.81039,110040.0,110030.0,0.001]
[1760217202399,0.9011659,110040.0,110030.0,0.001]
[1760217202998,0.9021659,110040.0,110030.0,0.001]
[1760217203199,0.38013,110040.0,110030.0,0.58667217]
[1760217203594,0.41139,110040.0,110030.0,0.001]
[1760217203801,0.5021659,110040.0,110030.0,0.001]
[1760217204010,0.9021659,110040.0,110030.0,0.001]
[1760217204302,0.01733,110030.0,110020.0,0.58567217]
[1760217204502,0.37813,110030.0,110020.0,0.58567217]
[1760217204894,0.01733,110020.0,110010.0,0.4516007]
[1760217205093,0.01733,110020.0,110010.0,1.03727287]
[1760217205500,0.01633,110020.0,110010.0,0.0908007]
[1760217205692,0.01633,110020.0,110010.0,0.58567217]
[1760217205892,0.44759,110020.0,110010.0,0.58567217]
[1760217206202,0.41633,110020.0,110010.0,0.58667217]
[1760217206597,0.44759,110020.0,110010.0,0.58667217]
[1760217206798,0.41633,110020.0,110010.0,0.58667217]
[1760217206993,0.8991824,110020.0,110010.0,0.58667217]
[1760217207194,0.8991824,110020.0,110010.0,0.001]
[1760217207793,0.01833,109990.0,109980.0,0.67649547]
[1760217208002,0.01833,109990.0,109980.0,0.67649757]
[1760217208003,0.04959,109990.0,109980.0,0.67649757]
[1760217208199,0.01733,109990.0,109980.0,0.67649757]
[1760217208599,0.37813,109990.0,109980.0,0.67649757]
[1760217209101,0.37813,109990.0,109980.0,0.001]
[1760217209305,0.9002072,109990.0,109980.0,0.003]
[1760217209507,0.77813,109990.0,109980.0,0.003]
[1760217209807,0.9002072,109990.0,109980.0,0.003]
[1760217211005,0.9002072,109990.0,109980.0,0.00955807]
[1760217211304,0.9002072,109990.0,109980.0,0.003]
[1760217213999,0.80939,109990.0,109980.0,0.003]
[1760217214203,0.37813,109990.0,109980.0,0.52634003]
[1760217214908,0.37813,109990.0,109980.0,0.0938254]
[1760217215108,0.37813,109990.0,109980.0,0.52634003]
[1760217215311,0.05003,109990.0,109980.0,0.003]
[1760217215508,0.01733,109990.0,109980.0,0.0938254]
[1760217215814,0.01733,109990.0,109980.0,1.37796543]
[1760217217606,0.01733,109990.0,109980.0,0.97796543]
[1760217217806,0.01733,109990.0,109980.0,0.88714003]
[1760217218008,0.01733,109990.0,109980.0,0.97796543]
[1760217218308,0.01733,109990.0,109980.0,0.3638]
[1760217218712,0.01733,109990.0,109980.0,0.97796543]
[1760217219207,0.05003,109990.0,109980.0,0.3638]
[1760217219712,0.5408471,109990.0,109980.0,0.3638]
[1760217220106,0.5408471,109990.0,109980.0,0.003]
[1760217221515,0.9016471,109990.0,109980.0,0.003]
[1760217222315,0.5016471,109990.0,109980.0,0.003]
[1760217222907,0.9016471,109990.0,109980.0,0.003]
[1760217223321,1.42498713,109990.0,109980.0,0.003]
[1760217223616,1.42498713,109990.0,109950.0,0.09815778]
[1760217223617,0.05132,109960.0,109950.0,0.0908497]
[1760217224111,0.05132,109960.0,109950.0,0.09804028]
[1760217224320,0.01959,109960.0,109950.0,0.62138031]
[1760217224516,0.01965649,109960.0,109950.0,1.38218031]
[1760217224915,0.01965649,109960.0,109950.0,1.38518031]
[1760217225218,6.649e-05,109960.0,109950.0,1.38518031]
[1760217225608,0.01965649,109960.0,109950.0,0.98618031]
[1760217225808,0.01959,109980.0,109970.0,0.0908337]
[1760217226017,0.01959,109980.0,109970.0,0.97497373]
[1760217226215,0.01959,109970.0,109960.0,0.88414003]
[1760217226414,0.1421537,109970.0,109950.0,0.89533061]
[1760217226712,0.01959,109960.0,109950.0,0.98618081]
[1760217226921,0.01959,109960.0,109950.0,0.98218081]
[1760217227111,0.01759,109960.0,109950.0,0.89133061]
[1760217227413,0.04932,109960.0,109950.0,0.36799058]
[1760217227813,0.1401619,109960.0,109950.0,0.36799058]
[1760217228013,0.41012,109960.0,109950.0,0.00719058]
[1760217228214,0.41012,109960.0,109950.0,0.002]
[1760217228520,0.5009619,109960.0,109950.0,0.003]
[1760217228818,0.41012,109960.0,109950.0,0.003]
[1760217229016,0.41012,109960.0,109950.0,0.00996418]
[1760217229217,0.5009619,109960.0,109950.0,0.00896418]
[1760217229522,0.9009619,109960.0,109950.0,0.003]
[1760217229915,0.41759,109960.0,109950.0,0.003]
[1760217230116,0.81012,109960.0,109950.0,0.003]
[1760217230425,0.9009619,109960.0,109950.0,0.003]
[1760217230717,0.81012,109960.0,109950.0,0.001]
[1760217230918,0.5009619,109960.0,109950.0,0.002]
[1760217231617,0.37839,109960.0,109950.0,0.61519023]
[1760217231825,0.37839,109960.0,109950.0,0.97599023]
[1760217231826,0.01759,109960.0,109950.0,0.97599023]
[1760217232024,0.01759,109960.0,109950.0,1.37599023]
[1760217232221,0.01759,109960.0,109950.0,0.0918502]
[1760217232418,0.01859,109960.0,109950.0,1.01519023]
[1760217232616,0.01859,109960.0,109950.0,0.52434003]
[1760217232820,0.01859,109960.0,109950.0,0.88514003]
[1760217233126,0.01759,109960.0,109950.0,1.37499023]
[1760217233319,0.01759,109960.0,109950.0,1.28414003]
[1760217233520,0.1401619,109960.0,109950.0,0.3608]
[1760217233714,0.05032,109950.0,109940.0,0.88414003]
[1760217233912,0.05032,109950.0,109940.0,0.3608]
[1760217234525,0.01959,109930.0,109920.0,0.97509661]
[1760217234722,0.01959,109930.0,109920.0,0.89152826]
[1760217235018,0.01959,109930.0,109920.0,0.98240326]
[1760217235220,0.05132,109930.0,109920.0,0.36818823]
[1760217235526,0.05132,109930.0,109920.0,0.98240326]
[1760217235720,0.01959,109930.0,109920.0,0.98240326]
[1760217235920,0.01959,109930.0,109920.0,0.36818823]
[1760217235921,0.05132,109930.0,109920.0,0.36818823]
[1760217236317,0.05132,109930.0,109920.0,8.728e-05]
[1760217236622,0.01959,109930.0,109920.0,0.36188728]
[1760217237320,0.05132,109930.0,109920.0,0.36188728]
[1760217237527,0.5421867,109930.0,109920.0,0.36188728]
[1760217237721,0.1421867,109930.0,109920.0,0.36188728]
[1760217237921,0.05132,109930.0,109920.0,0.00108728]
[1760217238626,0.01959,109930.0,109920.0,0.97610231]
[1760217238822,0.01959,109930.0,109920.0,0.88522731]
[1760217239022,0.01959,109930.0,109920.0,0.52442731]
[1760217239223,0.05132,109930.0,109920.0,0.52442731]
[1760217239524,0.01959,109930.0,109920.0,0.52442731]
[1760217239727,0.05132,109930.0,109920.0,0.52442731]
[1760217240223,0.01959,109930.0,109920.0,0.61530231]
[1760217240528,0.01959,109930.0,109920.0,0.97610231]
[1760217240730,0.01959,109930.0,109920.0,0.88522731]
[1760217240928,0.05132,109930.0,109920.0,0.88522731]
[1760217241127,0.05132,109930.0,109920.0,0.36188728]
[1760217241427,0.05132,109930.0,109920.0,0.00108728]
[1760217241632,0.1421867,109930.0,109920.0,0.00108728]
[1760217241934,0.01959,109930.0,109920.0,0.61530231]
[1760217242133,0.01959,109930.0,109920.0,0.97610231]
[1760217242336,0.01959,109930.0,109920.0,0.88522731]
[1760217242531,0.01959,109930.0,109920.0,0.61530231]
[1760217242835,0.1417367,109930.0,109920.0,0.52442731]
[1760217243034,0.5025367,109930.0,109920.0,0.00108728]
[1760217243240,0.9025367,109930.0,109920.0,0.00108728]
[1760217244142,0.38039,109930.0,109920.0,0.52442731]
[1760217244340,0.38039,109930.0,109920.0,0.61530231]
[1760217244537,0.01959,109930.0,109920.0,0.97610231]
[1760217244836,0.01959,109930.0,109920.0,0.52442731]
[1760217245034,0.41167,109930.0,109920.0,0.00108728]
[1760217245539,0.05087,109930.0,109920.0,0.09196228]
[1760217245740,0.05087,109930.0,109920.0,0.00108728]
[1760217246040,0.01959,109930.0,109920.0,0.61530231]
[1760217246740,0.01959,109930.0,109920.0,1.37610231]
[1760217249240,0.05087,109930.0,109920.0,0.88522731]
[1760217249737,0.41167,109930.0,109920.0,0.00108728]
[1760217249942,0.05087,109930.0,109920.0,0.00108728]
[1760217250236,0.01959,109930.0,109920.0,0.97610231]
[1760217250436,0.01959,109930.0,109920.0,1.37610231]
[1760217250743,0.01859,109950.0,109940.0,0.0908585]
[1760217250931,0.01859,109950.0,109940.0,0.97499853]
[1760217251434,0.01859,109950.0,109940.0,1.37499853]
[1760217251638,0.04987,109950.0,109940.0,0.3608]
[1760217251843,0.04987,109950.0,109940.0,0.88414003]
[1760217252541,0.01859,109950.0,109940.0,1.37499853]
[1760217254046,0.01859,109950.0,109940.0,0.97499853]
[1760217254344,0.01859,109950.0,109940.0,0.97599853]
[1760217254941,0.01859,109950.0,109940.0,0.88514003]
[1760217255337,0.01859,109950.0,109940.0,1.37599853]
[1760217255541,0.01859,109950.0,109940.0,0.97599853]
[1760217256344,0.01859,109950.0,109940.0,0.97499853]
[1760217257244,0.01859,109950.0,109940.0,0.4516585]
[1760217257448,0.04987,109950.0,109940.0,0.97499853]
[1760217257743,0.01859,109950.0,109940.0,0.97499853]
[1760217258647,0.01859,109950.0,109940.0,1.37499853]
[1760217260150,0.01859,109950.0,109940.0,1.37599853]
[1760217261149,0.01889,109980.0,109970.0,0.0908337]
[1760217261448,0.01889,109980.0,109970.0,0.61417373]
[1760217261844,0.01889,109980.0,109970.0,0.62115413]
[1760217262143,0.01889,109980.0,109970.0,0.98195413]
[1760217262342,0.01889,109990.0,109980.0,0.0908254]
[1760217262543,0.01889,109990.0,109980.0,0.97496543]
[1760217264445,0.01889,110000.0,109990.0,0.0908172]
[1760217264645,0.01889,110000.0,109990.0,0.97495723]
[1760217264845,0.37969,110020.0,110010.0,0.0908007]
[1760217265042,0.37969,110030.0,110020.0,0.0907924]
[1760217265043,0.01889,110030.0,110020.0,0.0907924]
[1760217265249,0.01889,110030.0,110020.0,0.61413243]
[1760217265748,0.05017,110030.0,110020.0,0.52334003]
[1760217265948,0.01889,110020.0,110010.0,0.88414003]
[1760217266149,0.01889,110020.0,110010.0,0.61414073]
[1760217266543,0.37969,110020.0,110010.0,0.61414073]
[1760217266756,0.01889,110020.0,110010.0,0.61414073]
[1760217267245,0.01989,110020.0,110010.0,0.4516007]
[1760217267450,0.01989,110020.0,110010.0,0.61414073]
[1760217267650,0.01989,110020.0,110010.0,0.97494073]
[1760217269652,0.01989,110020.0,110010.0,0.4516007]
[1760217269846,0.01989,110020.0,110010.0,0.97494073]
[1760217270047,0.05117,110020.0,110010.0,0.4516007]
[1760217270346,0.01989,110020.0,110010.0,0.97494073]
[1760217270852,0.01989,110020.0,110010.0,0.61414073]
[1760217271448,0.01989,110020.0,110010.0,0.67577421]
[1760217273947,0.05117,110020.0,110010.0,0.67577421]
[1760217274151,0.01989,110020.0,110010.0,0.67577421]
[1760217274444,0.01989,110020.0,110010.0,1.03657421]
[1760217275144,0.001,110020.0,110010.0,1.03657421]
[1760217275751,0.001,110020.0,110010.0,1.43657421]
[1760217276452,0.01848,110020.0,110010.0,1.43657421]
[1760217278048,0.01848,110020.0,110010.0,1.03657421]
[1760217279345,0.04993,110020.0,110010.0,0.67577421]
[1760217279549,0.01748,110010.0,110000.0,0.4516089]
[1760217279749,0.01748,110010.0,110000.0,1.03658241]
[1760217280151,0.01748,110010.0,110000.0,1.62155592]
[1760217280853,0.01848,110020.0,110010.0,0.0908007]
[1760217281157,0.01748,110020.0,110010.0,0.67577421]
[1760217281945,0.01848,110020.0,110010.0,0.67577421]
[1760217282252,0.04775,110020.0,110010.0,0.67577421]
[1760217282953,0.01848,110020.0,110010.0,0.67577421]
[1760217283454,0.44775,110020.0,110010.0,0.0908007]
[1760217283645,0.44775,110020.0,110010.0,0.67577421]
[1760217283849,0.41848,110020.0,110010.0,0.67577421]
[1760217284147,0.44775,110020.0,110010.0,0.58497351]
[1760217284353,0.44775,110020.0,110010.0,0.67577421]
[1760217285054,0.04775,110020.0,110010.0,0.67577421]
[1760217285350,0.001,110020.0,110010.0,1.43657421]
[1760217286250,0.01889,110030.0,110020.0,0.0907924]
[1760217286455,0.01889,110030.0,110020.0,1.03656591]
[1760217286852,0.3796,110050.0,110020.0,1.34577351]
[1760217287049,0.3796,110050.0,110040.0,0.67574941]
[1760217287246,0.0188,110050.0,110040.0,0.67574941]
[1760217287456,0.3796,110050.0,110040.0,0.67574941]
[1760217287656,0.80887,110050.0,110040.0,0.67574941]
[1760217289355,0.04807,110050.0,110040.0,0.67574941]
[1760217289656,0.0188,110050.0,110040.0,0.67574941]
[1760217290058,0.0188,110050.0,110040.0,1.03654941]
[1760217290351,0.0188,110060.0,110050.0,0.0907677]
[1760217290554,0.0188,110060.0,110050.0,1.26071472]
[1760217290946,0.04807,110060.0,110050.0,0.67574121]
[1760217291157,0.0188,110060.0,110050.0,1.03654121]
[1760217291350,0.0188,110060.0,110050.0,0.67574121]
[1760217291559,0.0188,110060.0,110050.0,0.0907677]
[1760217291857,0.0188,110050.0,110040.0,0.0907759]
[1760217292056,0.04807,110050.0,110040.0,0.0907759]
[1760217292354,0.0188,110050.0,110040.0,0.0907759]
[1760217292754,0.40887,110050.0,110040.0,0.0907759]
[1760217293151,0.04807,110050.0,110040.0,0.67574941]
[1760217293346,0.0188,110050.0,110040.0,0.67574941]
[1760217294754,0.04807,110050.0,110040.0,0.67574941]
[1760217294954,0.0188,110050.0,110040.0,0.67574941]
[1760217295657,0.0188,110050.0,110040.0,1.03654941]
[1760217296453,0.0188,110050.0,110040.0,1.43654941]
[1760217296958,0.0188,110050.0,110040.0,1.03654941]
[1760217297153,0.0188,110050.0,110040.0,0.67574941]
[1760217297654,0.04807,110050.0,110040.0,0.67574941]
[1760217298058,0.44807,110050.0,110040.0,0.67574941]
[1760217298252,0.80887,110050.0,110040.0,0.67574941]
[1760217298550,0.4188,110050.0,110040.0,1.03654941]
[1760217298745,0.0188,110050.0,110040.0,1.03654941]
[1760217299452,0.0188,110050.0,110040.0,1.43654941]
[1760217299759,0.0188,110070.0,110060.0,0.0907594]
[1760217299956,0.0188,110070.0,110060.0,0.67573291]
[1760217300960,0.0198,110070.0,110060.0,0.67573291]
[1760217301161,0.0208,110070.0,110060.0,0.67573291]
[1760217301959,0.81087,110070.0,110060.0,0.67573291]
[1760217302161,0.83497413,110070.0,110060.0,0.0907594]
[1760217302662,0.81087,110070.0,110060.0,0.0907594]
[1760217302957,0.01755,110060.0,110050.0,0.0907643]
[1760217303158,0.04897,110060.0,110050.0,0.67573781]
[1760217303965,0.04897,110050.0,110040.0,0.67574371]
[1760217304165,0.01755,110050.0,110040.0,0.67574371]
[1760217304464,0.01755,110060.0,110050.0,0.0907677]
[1760217304664,0.01755,110060.0,110050.0,1.03654121]
[1760217305169,0.0188,110070.0,110060.0,0.0907594]
[1760217305369,0.05022,110070.0,110060.0,0.67573291]
[1760217305564,0.01755,110050.0,110040.0,0.3608]
[1760217305764,0.01755,110050.0,110040.0,1.03654941]
[1760217308367,0.37835,110050.0,110040.0,0.0907759]
[1760217308575,0.01755,110050.0,110040.0,1.43654941]
[1760217308767,0.37835,110060.0,110050.0,0.0907677]
[1760217308966,0.04897,110060.0,110050.0,0.67574121]
[1760217309164,0.80977,110060.0,110050.0,0.58497351]
[1760217309368,0.04897,110050.0,110040.0,0.58497351]
[1760217309570,0.40977,110050.0,110040.0,0.67574941]
[1760217309968,0.88253674,110050.0,110040.0,0.0044]
[1760217310167,0.80977,110050.0,110040.0,0.0044]
[1760217310370,0.9005377,110050.0,110040.0,0.0044]
[1760217310569,0.04897,110020.0,110010.0,0.4515962]
[1760217310769,0.04897,110020.0,110010.0,0.94577351]
[1760217310969,0.04897,110020.0,110010.0,1.03657421]
[1760217311270,0.04897,110020.0,110010.0,0.94577351]
[1760217311471,0.04897,110010.0,110000.0,1.04439878]
[1760217311774,0.04897,110010.0,110000.0,0.9458913]
[1760217312166,0.9005707,110010.0,110000.0,0.00011779]
[1760217312372,0.80977,110010.0,110000.0,0.00011779]
[1760217312870,0.9005707,110010.0,110000.0,0.00011779]
[1760217313070,0.97401758,110010.0,110000.0,0.00011779]
[1760217313871,0.04897,109990.0,109970.0,0.67580391]
[1760217314079,0.04897,109980.0,109960.0,1.03661251]
[1760217314376,0.01755,109970.0,109960.0,1.03661251]
[1760217314572,0.37835,109970.0,109960.0,0.67581251]
[1760217314772,0.40984899,109970.0,109960.0,0.67581551]
[1760217314973,0.40884899,109970.0,109960.0,0.68327803]
[1760217315278,0.40884899,109970.0,109960.0,0.59243603]
[1760217315779,0.37742899,109970.0,109960.0,0.68327803]
[1760217315972,0.40784899,109970.0,109960.0,0.68327803]
[1760217316368,0.01562899,109970.0,109960.0,1.04407803]
[1760217316570,0.01562899,109970.0,109960.0,1.44507803]
[1760217316776,0.01562899,109970.0,109960.0,1.44607803]
[1760217316979,0.01562899,109970.0,109960.0,1.44507803]
[1760217317279,0.01562899,109970.0,109960.0,1.44607803]
[1760217317476,7.899e-05,109970.0,109960.0,1.44607803]
[1760217318873,0.01762899,109970.0,109960.0,1.04607803]
[1760217319075,0.01762899,109970.0,109960.0,0.95523603]
[1760217319280,0.01762899,109970.0,109960.0,1.04607803]
[1760217319873,0.04904899,109970.0,109960.0,0.95523603]
[1760217320078,0.40984899,109970.0,109960.0,0.59443603]
[1760217320978,0.80984899,109970.0,109960.0,0.002]
[1760217321480,0.80984899,109970.0,109960.0,0.58697351]
[1760217321678,0.80984899,109970.0,109960.0,0.002]
[1760217323177,0.80984899,109970.0,109960.0,0.67781551]
[1760217323178,0.40984899,109970.0,109960.0,0.67781551]
[1760217323583,0.80984899,109970.0,109960.0,0.58697351]
[1760217324083,0.80984899,109970.0,109960.0,0.67781551]
[1760217324084,0.40984899,109970.0,109960.0,0.67781551]
[1760217324678,0.01762899,109970.0,109960.0,0.67781551]
[1760217324982,0.01762899,109970.0,109960.0,1.03861551]
[1760217325379,0.04904899,109970.0,109960.0,1.03861551]
[1760217325576,0.44904899,109970.0,109960.0,0.94777351]
[1760217325778,0.44904899,109970.0,109960.0,1.03861551]
[1760217326179,0.80984899,109970.0,109960.0,0.58697351]
[1760217326379,0.80984899,109970.0,109960.0,0.67781551]
[1760217326680,0.01762899,109970.0,109960.0,1.03861551]
[1760217327581,0.01755,110000.0,109960.0,1.54350276]
[1760217327781,0.01755,110010.0,110000.0,0.0908089]
[1760217327983,0.01755,110020.0,110010.0,0.0908007]
[1760217328183,0.01755,110030.0,110020.0,0.0907924]
[1760217328484,6.83e-05,110030.0,110020.0,1.03656591]
[1760217328879,6.83e-05,110030.0,110020.0,0.4515924]
[1760217329184,6.83e-05,110030.0,110020.0,1.03656591]